[Event "Chessable Masters - Torneo preliminare"]
[White "Perez Ponsa, Federico"]
[Black "Iskusnyh, Sergei"]
[WhiteFideId "117927"]
[BlackFideId "4120027"]
[WhiteElo "2586"]
[BlackElo "2345"]
[Result "1-0"]
[Round "2"]
[TimeControl "600+2"]
[Date "2023.03.13"]
[WhiteClock "0:06:51"]
[BlackClock "0:01:02"]

1. e4 {[%clk 0:09:54]}  e6 {[%clk 0:09:58]} 2. d4 {[%clk 0:09:55]}  d5 {[%clk 0:09:52]} 3. e5 {[%clk 0:09:56]}  c5 {[%clk 0:09:45]} 4. c3 {[%clk 0:09:58]}  Nc6 {[%clk 0:09:45]} 5. Nf3 {[%clk 0:09:59]}  Nge7 {[%clk 0:09:40]} 6. Na3 {[%clk 0:10:00]}  Bd7 {[%clk 0:09:18]} 7. Nc2 {[%clk 0:09:56]}  Qa5 {[%clk 0:07:31]} 8. Bd2 {[%clk 0:09:07]}  Qb6 {[%clk 0:07:18]} 9. Rb1 {[%clk 0:09:08]}  Nf5 {[%clk 0:06:31]} 10. Bd3 {[%clk 0:08:57]}  cxd4 {[%clk 0:06:01]} 11. Bxf5 {[%clk 0:08:54]}  exf5 {[%clk 0:05:57]} 12. Ncxd4 {[%clk 0:08:30]}  Qa6 {[%clk 0:05:18]} 13. Qe2 {[%clk 0:08:27]}  Qxe2+ {[%clk 0:05:00]} 14. Kxe2 {[%clk 0:08:28]}  Nxd4+ {[%clk 0:04:54]} 15. Nxd4 {[%clk 0:08:28]}  Bc5 {[%clk 0:04:51]} 16. Nb3 {[%clk 0:08:25]}  Bb5+ {[%clk 0:04:29]} 17. Kf3 {[%clk 0:08:23]}  Be7 {[%clk 0:04:30]} 18. Nd4 {[%clk 0:08:16]}  Bd3 {[%clk 0:04:26]} 19. Rbd1 {[%clk 0:08:17]}  g5 {[%clk 0:04:24]} 20. Ke3 {[%clk 0:08:03]}  Be4 {[%clk 0:04:16]} 21. f3 {[%clk 0:08:03]}  f4+ {[%clk 0:04:16]} 22. Kf2 {[%clk 0:07:54]}  Bg6 {[%clk 0:04:14]} 23. h4 {[%clk 0:07:56]}  gxh4 {[%clk 0:03:24]} 24. Bxf4 {[%clk 0:07:55]}  O-O {[%clk 0:03:18]} 25. Be3 {[%clk 0:07:35]}  Rae8 {[%clk 0:02:25]} 26. Bh6 {[%clk 0:07:30]}  Bd8 {[%clk 0:02:11]} 27. Rhe1 {[%clk 0:07:25]}  f6 {[%clk 0:01:33]} 28. Bxf8 {[%clk 0:07:12]}  Kxf8 {[%clk 0:01:30]} 29. exf6 {[%clk 0:07:10]}  Bxf6 {[%clk 0:01:31]} 30. Rxe8+ {[%clk 0:07:03]}  Kxe8 {[%clk 0:01:31]} 31. Ne6 {[%clk 0:07:04]}  Bf7 {[%clk 0:01:20]} 32. Nc7+ {[%clk 0:07:03]}  Kf8 {[%clk 0:01:16]} 33. Nxd5 {[%clk 0:07:03]}  Be5 {[%clk 0:01:17]} 34. Ne3 {[%clk 0:07:00]}  Ke7 {[%clk 0:01:02]} 35. b3 {[%clk 0:06:51]} 1-0


[Site "Internet"]

[Event "Chessable Masters - Torneo preliminare"]
[White "Sasikiran, Krishnan"]
[Black "Huschenbeth, Niclas"]
[WhiteFideId "5004985"]
[BlackFideId "24604747"]
[WhiteElo "2559"]
[BlackElo "2566"]
[Result "1-0"]
[Round "2"]
[TimeControl "600+2"]
[Date "2023.03.13"]
[WhiteClock "0:01:47"]
[BlackClock "0:00:35"]

1. e4 {[%clk 0:10:01]}  c5 {[%clk 0:09:58]} 2. Nf3 {[%clk 0:10:02]}  d6 {[%clk 0:10:00]} 3. d4 {[%clk 0:10:03]}  cxd4 {[%clk 0:10:01]} 4. Nxd4 {[%clk 0:10:04]}  Nf6 {[%clk 0:10:03]} 5. Nc3 {[%clk 0:10:06]}  a6 {[%clk 0:10:03]} 6. Be3 {[%clk 0:10:07]}  e5 {[%clk 0:09:55]} 7. Nb3 {[%clk 0:10:06]}  Be7 {[%clk 0:09:53]} 8. f3 {[%clk 0:09:50]}  Be6 {[%clk 0:09:52]} 9. Qd2 {[%clk 0:09:50]}  O-O {[%clk 0:09:52]} 10. O-O-O {[%clk 0:09:45]}  Nbd7 {[%clk 0:09:32]} 11. g4 {[%clk 0:09:42]}  b5 {[%clk 0:09:33]} 12. g5 {[%clk 0:09:26]}  Nh5 {[%clk 0:09:34]} 13. Kb1 {[%clk 0:08:48]}  Rc8 {[%clk 0:08:08]} 14. Nd5 {[%clk 0:06:52]}  Bxd5 {[%clk 0:08:05]} 15. exd5 {[%clk 0:06:53]}  f5 {[%clk 0:05:58]} 16. Rg1 {[%clk 0:04:56]}  f4 {[%clk 0:05:00]} 17. Bf2 {[%clk 0:04:55]}  Bxg5 {[%clk 0:05:00]} 18. Bh3 {[%clk 0:04:45]}  Rc7 {[%clk 0:04:57]} 19. Qa5 {[%clk 0:04:41]}  e4 {[%clk 0:02:32]} 20. Rxg5 {[%clk 0:04:17]}  Qxg5 {[%clk 0:02:22]} 21. Qxc7 {[%clk 0:04:16]}  Ne5 {[%clk 0:02:17]} 22. Be6+ {[%clk 0:03:48]}  Kh8 {[%clk 0:02:17]} 23. Qxd6 {[%clk 0:03:48]}  Rd8 {[%clk 0:02:14]} 24. Qc7 {[%clk 0:03:32]}  e3 {[%clk 0:02:11]} 25. Be1 {[%clk 0:03:17]}  Nxf3 {[%clk 0:02:02]} 26. Ba5 {[%clk 0:03:17]}  e2 {[%clk 0:01:37]} 27. Rc1 {[%clk 0:03:16]}  Rf8 {[%clk 0:01:21]} 28. d6 {[%clk 0:02:48]}  Qe5 {[%clk 0:00:35]} 29. Qe7 {[%clk 0:02:08]}  Qf6 {[%clk 0:00:35]} 30. Bg4 {[%clk 0:01:47]} 1-0


[Site "Internet"]

[Event "Chessable Masters - Torneo preliminare"]
[White "Le, Tuan Minh"]
[Black "Artemiev, Vladislav"]
[WhiteFideId "12401153"]
[BlackFideId "24101605"]
[WhiteElo "2489"]
[BlackElo "2735"]
[Result "0-1"]
[Round "3"]
[TimeControl "600+2"]
[Date "2023.03.13"]
[WhiteClock "0:01:06"]
[BlackClock "0:03:16"]

1. d4 {[%clk 0:10:01]}  Nf6 {[%clk 0:09:45]} 2. Nf3 {[%clk 0:10:01]}  e6 {[%clk 0:09:43]} 3. Bf4 {[%clk 0:10:02]}  b6 {[%clk 0:09:32]} 4. e3 {[%clk 0:10:02]}  Bb7 {[%clk 0:09:33]} 5. c4 {[%clk 0:10:02]}  Bb4+ {[%clk 0:08:45]} 6. Nfd2 {[%clk 0:09:29]}  O-O {[%clk 0:08:46]} 7. a3 {[%clk 0:09:28]}  Be7 {[%clk 0:08:44]} 8. Nc3 {[%clk 0:09:26]}  d5 {[%clk 0:08:12]} 9. cxd5 {[%clk 0:07:12]}  Nxd5 {[%clk 0:08:12]} 10. Bg3 {[%clk 0:06:40]}  Nd7 {[%clk 0:07:16]} 11. Nf3 {[%clk 0:06:23]}  c5 {[%clk 0:07:08]} 12. Bd3 {[%clk 0:06:13]}  cxd4 {[%clk 0:07:02]} 13. Nxd5 {[%clk 0:06:06]}  Bxd5 {[%clk 0:07:02]} 14. exd4 {[%clk 0:05:49]}  f5 {[%clk 0:06:25]} 15. h3 {[%clk 0:05:41]}  f4 {[%clk 0:05:32]} 16. Bh2 {[%clk 0:05:41]}  e5 {[%clk 0:05:03]} 17. Nxe5 {[%clk 0:02:37]}  Nxe5 {[%clk 0:05:01]} 18. dxe5 {[%clk 0:02:39]}  Bxg2 {[%clk 0:04:56]} 19. Rg1 {[%clk 0:01:49]}  Qd5 {[%clk 0:04:56]} 20. Bc2 {[%clk 0:01:30]}  Qxe5+ {[%clk 0:04:18]} 21. Qe2 {[%clk 0:01:08]}  Qxe2+ {[%clk 0:04:12]} 22. Kxe2 {[%clk 0:01:10]}  f3+ {[%clk 0:04:00]} 23. Kd2 {[%clk 0:01:06]}  Rad8+ {[%clk 0:03:27]} 24. Kc3 {[%clk 0:01:06]}  Bh4 {[%clk 0:03:16]} 0-1


[Site "Internet"]

[Event "Chessable Masters - Torneo preliminare"]
[White "Martinez Alcantara, Jose Eduardo"]
[Black "Yakubboev, Nodirbek"]
[WhiteFideId "3805662"]
[BlackFideId "14203987"]
[WhiteElo "2643"]
[BlackElo "2577"]
[Result "1/2-1/2"]
[Round "3"]
[TimeControl "600+2"]
[Date "2023.03.13"]
[WhiteClock "0:00:18"]
[BlackClock "0:00:15"]

1. e4 {[%clk 0:09:57]}  e5 {[%clk 0:09:00]} 2. Nf3 {[%clk 0:09:58]}  Nc6 {[%clk 0:09:00]} 3. Nc3 {[%clk 0:09:59]}  Nf6 {[%clk 0:08:59]} 4. h3 {[%clk 0:10:00]}  d5 {[%clk 0:08:04]} 5. exd5 {[%clk 0:09:59]}  Nxd5 {[%clk 0:08:06]} 6. Bb5 {[%clk 0:10:00]}  Nxc3 {[%clk 0:08:06]} 7. bxc3 {[%clk 0:10:02]}  Bd6 {[%clk 0:08:07]} 8. d4 {[%clk 0:10:03]}  exd4 {[%clk 0:08:08]} 9. cxd4 {[%clk 0:10:04]}  O-O {[%clk 0:08:04]} 10. O-O {[%clk 0:10:06]}  Bf5 {[%clk 0:07:50]} 11. Bg5 {[%clk 0:10:05]}  Qc8 {[%clk 0:07:39]} 12. Re1 {[%clk 0:09:58]}  Nb4 {[%clk 0:06:16]} 13. Ba4 {[%clk 0:09:31]}  b5 {[%clk 0:05:27]} 14. Bb3 {[%clk 0:09:29]}  a5 {[%clk 0:05:27]} 15. a4 {[%clk 0:08:50]}  bxa4 {[%clk 0:05:20]} 16. Rxa4 {[%clk 0:08:35]}  Bd7 {[%clk 0:05:05]} 17. Ra1 {[%clk 0:08:26]}  a4 {[%clk 0:05:02]} 18. Bc4 {[%clk 0:08:26]}  Bf5 {[%clk 0:04:55]} 19. Be7 {[%clk 0:07:23]}  Re8 {[%clk 0:03:52]} 20. Bxd6 {[%clk 0:04:53]}  cxd6 {[%clk 0:03:54]} 21. Rxe8+ {[%clk 0:04:54]}  Qxe8 {[%clk 0:03:55]} 22. c3 {[%clk 0:04:56]}  d5 {[%clk 0:03:57]} 23. Bf1 {[%clk 0:04:56]}  Nc2 {[%clk 0:03:57]} 24. Ra2 {[%clk 0:04:55]}  a3 {[%clk 0:03:57]} 25. Ne5 {[%clk 0:03:43]}  Qc8 {[%clk 0:01:29]} 26. Qf3 {[%clk 0:01:30]}  Ne1 {[%clk 0:01:17]} 27. Qf4 {[%clk 0:01:16]}  f6 {[%clk 0:00:47]} 28. Nc6 {[%clk 0:01:17]}  Qxc6 {[%clk 0:00:40]} 29. Qxf5 {[%clk 0:01:18]}  g6 {[%clk 0:00:41]} 30. Qb1 {[%clk 0:01:15]}  Qxc3 {[%clk 0:00:36]} 31. Qb7 {[%clk 0:01:16]}  Rd8 {[%clk 0:00:33]} 32. Qe7 {[%clk 0:01:11]}  Ra8 {[%clk 0:00:28]} 33. Qe6+ {[%clk 0:00:48]}  Kg7 {[%clk 0:00:25]} 34. Qxd5 {[%clk 0:00:50]}  Ra7 {[%clk 0:00:23]} 35. Re2 {[%clk 0:00:18]}  Nd3 {[%clk 0:00:15]} 36. Qd8 {[%clk 0:00:16]}  a2 {[%clk 0:00:12]} 37. Re7+ {[%clk 0:00:13]}  Rxe7 {[%clk 0:00:13]} 38. Qxe7+ {[%clk 0:00:15]}  Kh6 {[%clk 0:00:14]} 39. Qf8+ {[%clk 0:00:10]}  Kg5 {[%clk 0:00:14]} 40. h4+ {[%clk 0:00:11]}  Kf5 {[%clk 0:00:12]} 41. Qf7 {[%clk 0:00:13]}  a1=Q {[%clk 0:00:09]} 42. Qd5+ {[%clk 0:00:14]}  Ne5 {[%clk 0:00:07]} 43. dxe5 {[%clk 0:00:16]}  Qxe5 {[%clk 0:00:08]} 44. Qd7+ {[%clk 0:00:16]}  Qe6 {[%clk 0:00:06]} 45. g4+ {[%clk 0:00:17]}  Ke5 {[%clk 0:00:06]} 46. f4+ {[%clk 0:00:19]}  Kxf4 {[%clk 0:00:07]} 47. Qxe6 {[%clk 0:00:20]}  Qd4+ {[%clk 0:00:08]} 48. Kh1 {[%clk 0:00:19]}  Kg3 {[%clk 0:00:09]} 49. Qe1+ {[%clk 0:00:20]}  Kxg4 {[%clk 0:00:09]} 50. Be2+ {[%clk 0:00:20]}  Kf4 {[%clk 0:00:10]} 51. Qf1+ {[%clk 0:00:21]}  Ke5 {[%clk 0:00:12]} 52. Qe1 {[%clk 0:00:21]}  Qe3 {[%clk 0:00:11]} 53. Kg2 {[%clk 0:00:19]}  Qe4+ {[%clk 0:00:11]} 54. Kg1 {[%clk 0:00:20]}  Qe3+ {[%clk 0:00:12]} 55. Kg2 {[%clk 0:00:21]}  Qe4+ {[%clk 0:00:14]} 56. Kh2 {[%clk 0:00:14]}  Qf4+ {[%clk 0:00:13]} 57. Qg3 {[%clk 0:00:13]}  g5 {[%clk 0:00:10]} 58. hxg5 {[%clk 0:00:12]}  fxg5 {[%clk 0:00:11]} 59. Kh3 {[%clk 0:00:12]}  Qxg3+ {[%clk 0:00:11]} 60. Kxg3 {[%clk 0:00:13]}  Kf6 {[%clk 0:00:12]} 61. Kg4 {[%clk 0:00:15]}  h5+ {[%clk 0:00:14]} 62. Kxh5 {[%clk 0:00:16]}  g4 {[%clk 0:00:15]} 63. Kxg4 {[%clk 0:00:18]} 1/2-1/2


[Site "Internet"]

[Event "Chessable Masters - Torneo preliminare"]
[White "Firouzja, Alireza"]
[Black "Oparin, Grigoriy"]
[WhiteFideId "12573981"]
[BlackFideId "24125890"]
[WhiteElo "2745"]
[BlackElo "2650"]
[Result "1-0"]
[Round "3"]
[TimeControl "600+2"]
[Date "2023.03.13"]
[WhiteClock "0:03:48"]
[BlackClock "0:01:33"]

1. e4 {[%clk 0:09:19]}  e5 {[%clk 0:09:44]} 2. Nf3 {[%clk 0:09:18]}  Nc6 {[%clk 0:09:46]} 3. Bb5 {[%clk 0:09:17]}  a6 {[%clk 0:09:47]} 4. Ba4 {[%clk 0:09:18]}  Nf6 {[%clk 0:09:45]} 5. O-O {[%clk 0:09:19]}  Nxe4 {[%clk 0:09:46]} 6. d4 {[%clk 0:09:20]}  b5 {[%clk 0:09:47]} 7. Bb3 {[%clk 0:09:21]}  d5 {[%clk 0:09:49]} 8. dxe5 {[%clk 0:09:22]}  Be6 {[%clk 0:09:50]} 9. c3 {[%clk 0:09:23]}  Be7 {[%clk 0:09:48]} 10. Bc2 {[%clk 0:09:24]}  O-O {[%clk 0:09:49]} 11. Nbd2 {[%clk 0:09:24]}  f5 {[%clk 0:09:50]} 12. exf6 {[%clk 0:09:23]}  Nxf6 {[%clk 0:09:51]} 13. Re1 {[%clk 0:09:20]}  Bg4 {[%clk 0:09:50]} 14. Nf1 {[%clk 0:09:21]}  Bc5 {[%clk 0:09:31]} 15. Bf4 {[%clk 0:09:19]}  Qd7 {[%clk 0:09:08]} 16. Ne3 {[%clk 0:08:22]}  Bxe3 {[%clk 0:08:44]} 17. Rxe3 {[%clk 0:07:30]}  Rae8 {[%clk 0:08:44]} 18. Rxe8 {[%clk 0:06:34]}  Nxe8 {[%clk 0:08:41]} 19. Bg3 {[%clk 0:06:17]}  Bxf3 {[%clk 0:08:37]} 20. gxf3 {[%clk 0:06:18]}  Nf6 {[%clk 0:08:38]} 21. Qd3 {[%clk 0:06:14]}  Re8 {[%clk 0:08:32]} 22. Kg2 {[%clk 0:06:03]}  Ne5 {[%clk 0:07:56]} 23. Qd4 {[%clk 0:06:02]}  Nc4 {[%clk 0:07:27]} 24. b3 {[%clk 0:06:02]}  Nd6 {[%clk 0:07:26]} 25. a4 {[%clk 0:05:48]}  Qc6 {[%clk 0:05:15]} 26. Bd3 {[%clk 0:05:38]}  bxa4 {[%clk 0:05:03]} 27. Rxa4 {[%clk 0:04:49]}  Nb5 {[%clk 0:05:04]} 28. Qb4 {[%clk 0:04:48]}  Qxc3 {[%clk 0:04:46]} 29. Qxc3 {[%clk 0:04:48]}  Nxc3 {[%clk 0:04:47]} 30. Rxa6 {[%clk 0:04:50]}  Rb8 {[%clk 0:03:43]} 31. Bxc7 {[%clk 0:04:47]}  Rxb3 {[%clk 0:03:44]} 32. Bf5 {[%clk 0:04:48]}  Kf7 {[%clk 0:03:07]} 33. Be5 {[%clk 0:04:31]}  Nb5 {[%clk 0:03:07]} 34. Rb6 {[%clk 0:04:26]}  Kf8 {[%clk 0:01:48]} 35. Rb8+ {[%clk 0:04:03]}  Kf7 {[%clk 0:01:46]} 36. Rb7+ {[%clk 0:04:03]}  Kf8 {[%clk 0:01:47]} 37. Bc2 {[%clk 0:03:53]}  Rb4 {[%clk 0:01:33]} 38. Bd3 {[%clk 0:03:48]} 1-0


[Site "Internet"]

[Event "Chessable Masters - Torneo preliminare"]
[White "Alekseenko, Kirill"]
[Black "Salem, A.R. Saleh"]
[WhiteFideId "4135539"]
[BlackFideId "9301348"]
[WhiteElo "2632"]
[BlackElo "2654"]
[Result "1-0"]
[Round "3"]
[TimeControl "600+2"]
[Date "2023.03.13"]
[WhiteClock "0:01:22"]
[BlackClock "0:00:11"]

1. e4 {[%clk 0:09:58]}  e5 {[%clk 0:09:52]} 2. Nf3 {[%clk 0:09:59]}  Nc6 {[%clk 0:09:53]} 3. Bb5 {[%clk 0:09:55]}  a6 {[%clk 0:09:54]} 4. Ba4 {[%clk 0:09:51]}  Nf6 {[%clk 0:09:55]} 5. Bxc6 {[%clk 0:09:40]}  dxc6 {[%clk 0:09:55]} 6. d3 {[%clk 0:09:41]}  Bd6 {[%clk 0:09:35]} 7. b3 {[%clk 0:09:40]}  O-O {[%clk 0:09:27]} 8. Bb2 {[%clk 0:09:39]}  Nd7 {[%clk 0:08:55]} 9. Nbd2 {[%clk 0:09:38]}  Re8 {[%clk 0:08:41]} 10. O-O {[%clk 0:09:38]}  a5 {[%clk 0:07:12]} 11. a4 {[%clk 0:09:37]}  c5 {[%clk 0:06:48]} 12. Nc4 {[%clk 0:09:32]}  b6 {[%clk 0:06:24]} 13. Kh1 {[%clk 0:08:57]}  Ba6 {[%clk 0:06:11]} 14. Ne3 {[%clk 0:08:47]}  Nb8 {[%clk 0:06:12]} 15. Nf5 {[%clk 0:07:52]}  Nc6 {[%clk 0:06:11]} 16. Nd2 {[%clk 0:07:53]}  Bc8 {[%clk 0:05:49]} 17. Qg4 {[%clk 0:06:51]}  g6 {[%clk 0:04:46]} 18. Qg3 {[%clk 0:06:50]}  Nd4 {[%clk 0:04:25]} 19. Bxd4 {[%clk 0:06:42]}  exd4 {[%clk 0:03:47]} 20. Nxd6 {[%clk 0:06:42]}  cxd6 {[%clk 0:03:24]} 21. Nc4 {[%clk 0:06:41]}  Re6 {[%clk 0:02:06]} 22. f4 {[%clk 0:06:41]}  Ba6 {[%clk 0:02:08]} 23. f5 {[%clk 0:05:41]}  Rf6 {[%clk 0:02:09]} 24. e5 {[%clk 0:05:17]}  dxe5 {[%clk 0:02:07]} 25. Nxe5 {[%clk 0:05:18]}  Bb7 {[%clk 0:01:16]} 26. Ng4 {[%clk 0:05:01]}  g5 {[%clk 0:01:09]} 27. Rae1 {[%clk 0:04:45]}  Kg7 {[%clk 0:01:05]} 28. Re5 {[%clk 0:03:48]}  h5 {[%clk 0:00:36]} 29. Nxf6 {[%clk 0:03:48]}  Qxf6 {[%clk 0:00:38]} 30. h4 {[%clk 0:03:49]}  g4 {[%clk 0:00:34]} 31. Kg1 {[%clk 0:03:38]}  Rd8 {[%clk 0:00:13]} 32. Rfe1 {[%clk 0:03:20]}  Rd7 {[%clk 0:00:09]} 33. Qf4 {[%clk 0:03:10]}  Qxh4 {[%clk 0:00:10]} 34. f6+ {[%clk 0:03:10]}  Kg6 {[%clk 0:00:04]} 35. Qf5+ {[%clk 0:02:01]}  Kh6 {[%clk 0:00:05]} 36. Qxd7 {[%clk 0:02:02]}  Bxg2 {[%clk 0:00:07]} 37. Qf5 {[%clk 0:01:53]}  Bf3 {[%clk 0:00:05]} 38. Qf4+ {[%clk 0:01:41]}  Kg6 {[%clk 0:00:06]} 39. Qh2 {[%clk 0:01:37]}  Qxh2+ {[%clk 0:00:08]} 40. Kxh2 {[%clk 0:01:39]}  Kxf6 {[%clk 0:00:10]} 41. Kg3 {[%clk 0:01:30]}  Kg6 {[%clk 0:00:11]} 42. Rf1 {[%clk 0:01:22]} 1-0


[Site "Internet"]

[Event "Chessable Masters - Torneo preliminare"]
[White "Kevlishvili, Robby"]
[Black "Praggnanandhaa, R"]
[WhiteFideId "1040634"]
[BlackFideId "25059530"]
[WhiteElo "2577"]
[BlackElo "2587"]
[Result "1/2-1/2"]
[Round "3"]
[TimeControl "600+2"]
[Date "2023.03.13"]
[WhiteClock "0:02:05"]
[BlackClock "0:00:28"]

1. e4 {[%clk 0:10:01]}  e5 {[%clk 0:10:00]} 2. Nf3 {[%clk 0:10:02]}  Nc6 {[%clk 0:10:01]} 3. Bb5 {[%clk 0:10:03]}  g6 {[%clk 0:09:58]} 4. c3 {[%clk 0:10:00]}  a6 {[%clk 0:09:58]} 5. Bc4 {[%clk 0:09:56]}  Bg7 {[%clk 0:09:55]} 6. d4 {[%clk 0:09:56]}  d6 {[%clk 0:09:55]} 7. Bg5 {[%clk 0:09:46]}  Nf6 {[%clk 0:09:36]} 8. Nbd2 {[%clk 0:09:38]}  O-O {[%clk 0:09:28]} 9. O-O {[%clk 0:09:38]}  Qe8 {[%clk 0:09:26]} 10. Re1 {[%clk 0:09:18]}  h6 {[%clk 0:09:24]} 11. Be3 {[%clk 0:08:21]}  Ng4 {[%clk 0:08:23]} 12. Nf1 {[%clk 0:08:20]}  Kh8 {[%clk 0:08:13]} 13. Bc1 {[%clk 0:08:13]}  Nf6 {[%clk 0:07:00]} 14. h3 {[%clk 0:08:02]}  b5 {[%clk 0:06:53]} 15. Bd3 {[%clk 0:07:59]}  Nh5 {[%clk 0:06:31]} 16. a4 {[%clk 0:07:53]}  bxa4 {[%clk 0:06:19]} 17. dxe5 {[%clk 0:06:55]}  Nxe5 {[%clk 0:06:07]} 18. Nxe5 {[%clk 0:06:24]}  Qxe5 {[%clk 0:06:06]} 19. Nh2 {[%clk 0:06:18]}  Kh7 {[%clk 0:04:32]} 20. Nf3 {[%clk 0:06:16]}  Qf6 {[%clk 0:04:32]} 21. e5 {[%clk 0:05:58]}  dxe5 {[%clk 0:04:31]} 22. Nxe5 {[%clk 0:06:00]}  Re8 {[%clk 0:04:08]} 23. Qxh5 {[%clk 0:05:16]}  Rxe5 {[%clk 0:03:48]} 24. Rxe5 {[%clk 0:05:13]}  Qxe5 {[%clk 0:03:50]} 25. Qf3 {[%clk 0:04:51]}  Rb8 {[%clk 0:01:53]} 26. Qxf7 {[%clk 0:04:36]}  Bf5 {[%clk 0:01:54]} 27. Bxf5 {[%clk 0:04:33]}  gxf5 {[%clk 0:01:53]} 28. Be3 {[%clk 0:04:28]}  c5 {[%clk 0:01:44]} 29. Rxa4 {[%clk 0:03:54]}  Rxb2 {[%clk 0:01:44]} 30. g3 {[%clk 0:03:17]}  Rb6 {[%clk 0:01:27]} 31. Rf4 {[%clk 0:02:57]}  Rf6 {[%clk 0:01:23]} 32. Qc4 {[%clk 0:02:56]}  a5 {[%clk 0:01:00]} 33. Qxc5 {[%clk 0:02:40]}  Qxc5 {[%clk 0:01:01]} 34. Bxc5 {[%clk 0:02:42]}  Ra6 {[%clk 0:00:56]} 35. Rxf5 {[%clk 0:02:31]}  Bxc3 {[%clk 0:00:52]} 36. Ba3 {[%clk 0:02:28]}  Rb6 {[%clk 0:00:47]} 37. Kg2 {[%clk 0:02:19]}  Bb4 {[%clk 0:00:34]} 38. Bc1 {[%clk 0:02:17]}  Ra6 {[%clk 0:00:31]} 39. Rf7+ {[%clk 0:02:16]}  Kg6 {[%clk 0:00:31]} 40. Rb7 {[%clk 0:02:18]}  Bf8 {[%clk 0:00:31]} 41. Rb8 {[%clk 0:02:02]}  Kf7 {[%clk 0:00:28]} 42. Rb7+ {[%clk 0:02:02]}  Kg6 {[%clk 0:00:28]} 43. Rb8 {[%clk 0:02:03]}  Kf7 {[%clk 0:00:27]} 44. Rb7+ {[%clk 0:02:05]}  Kg6 {[%clk 0:00:28]} 1/2-1/2


[Site "Internet"]

[Event "Chessable Masters - Torneo preliminare"]
[White "Aditya, Mittal"]
[Black "Fedoseev, Vladimir"]
[WhiteFideId "35042025"]
[BlackFideId "24130737"]
[WhiteElo "2386"]
[BlackElo "2752"]
[Result "0-1"]
[Round "3"]
[TimeControl "600+2"]
[Date "2023.03.13"]
[WhiteClock "0:00:04"]
[BlackClock "0:00:12"]

1. d4 {[%clk 0:10:01]}  Nf6 {[%clk 0:09:53]} 2. c4 {[%clk 0:10:03]}  e6 {[%clk 0:09:54]} 3. Nf3 {[%clk 0:10:04]}  d5 {[%clk 0:09:54]} 4. Nc3 {[%clk 0:10:06]}  c6 {[%clk 0:09:54]} 5. Bg5 {[%clk 0:10:06]}  h6 {[%clk 0:09:54]} 6. Bh4 {[%clk 0:10:04]}  Be7 {[%clk 0:09:55]} 7. e3 {[%clk 0:10:05]}  Nbd7 {[%clk 0:09:55]} 8. Qc2 {[%clk 0:10:06]}  O-O {[%clk 0:09:56]} 9. Rd1 {[%clk 0:10:08]}  a6 {[%clk 0:09:57]} 10. a3 {[%clk 0:10:04]}  b6 {[%clk 0:09:24]} 11. cxd5 {[%clk 0:09:42]}  cxd5 {[%clk 0:09:15]} 12. Bd3 {[%clk 0:09:40]}  Bb7 {[%clk 0:09:12]} 13. O-O {[%clk 0:09:42]}  Rc8 {[%clk 0:08:46]} 14. Qe2 {[%clk 0:09:41]}  Bxa3 {[%clk 0:08:19]} 15. Nxd5 {[%clk 0:09:16]}  exd5 {[%clk 0:07:53]} 16. bxa3 {[%clk 0:09:17]}  g5 {[%clk 0:07:36]} 17. Bg3 {[%clk 0:09:09]}  Ne4 {[%clk 0:07:35]} 18. Rc1 {[%clk 0:08:59]}  b5 {[%clk 0:07:30]} 19. h4 {[%clk 0:08:29]}  Qe7 {[%clk 0:07:15]} 20. hxg5 {[%clk 0:07:48]}  hxg5 {[%clk 0:07:13]} 21. Bc7 {[%clk 0:06:24]}  Ndf6 {[%clk 0:06:58]} 22. Be5 {[%clk 0:06:17]}  Ng4 {[%clk 0:06:55]} 23. Rxc8 {[%clk 0:04:16]}  Bxc8 {[%clk 0:06:05]} 24. Bh2 {[%clk 0:03:47]}  f6 {[%clk 0:05:51]} 25. Bxe4 {[%clk 0:02:15]}  dxe4 {[%clk 0:05:45]} 26. Nd2 {[%clk 0:02:16]}  f5 {[%clk 0:04:01]} 27. Ra1 {[%clk 0:01:56]}  Be6 {[%clk 0:03:29]} 28. f3 {[%clk 0:01:53]}  exf3 {[%clk 0:03:21]} 29. gxf3 {[%clk 0:01:53]}  Nxh2 {[%clk 0:03:18]} 30. Qxh2 {[%clk 0:01:53]}  Bd5 {[%clk 0:02:22]} 31. Kf2 {[%clk 0:01:33]}  f4 {[%clk 0:01:55]} 32. e4 {[%clk 0:00:36]}  Qg7 {[%clk 0:01:38]} 33. Rh1 {[%clk 0:00:37]}  Qxd4+ {[%clk 0:01:08]} 34. Ke1 {[%clk 0:00:39]}  Qe3+ {[%clk 0:01:07]} 35. Kf1 {[%clk 0:00:40]}  Bc4+ {[%clk 0:01:02]} 36. Nxc4 {[%clk 0:00:36]}  Qxf3+ {[%clk 0:01:02]} 37. Kg1 {[%clk 0:00:13]}  Qd1+ {[%clk 0:00:32]} 38. Kf2 {[%clk 0:00:14]}  Qd4+ {[%clk 0:00:17]} 39. Kf3 {[%clk 0:00:12]}  Qd3+ {[%clk 0:00:17]} 40. Kg4 {[%clk 0:00:09]}  Qd7+ {[%clk 0:00:17]} 41. Kf3 {[%clk 0:00:05]}  g4+ {[%clk 0:00:09]} 42. Ke2 {[%clk 0:00:06]}  Qg7 {[%clk 0:00:10]} 43. Ne5 {[%clk 0:00:04]}  f3+ {[%clk 0:00:11]} 44. Kf2 {[%clk 0:00:04]}  Rc8 {[%clk 0:00:09]} 45. Nxg4 {[%clk 0:00:04]}  Rc2+ {[%clk 0:00:10]} 46. Kxf3 {[%clk 0:00:05]}  Rxh2 {[%clk 0:00:11]} 47. Rxh2 {[%clk 0:00:06]}  Qc3+ {[%clk 0:00:13]} 48. Kf4 {[%clk 0:00:07]}  Qxa3 {[%clk 0:00:13]} 49. Kf5 {[%clk 0:00:07]}  Qf3+ {[%clk 0:00:12]} 50. Kg5 {[%clk 0:00:09]}  b4 {[%clk 0:00:12]} 51. e5 {[%clk 0:00:06]}  b3 {[%clk 0:00:13]} 52. e6 {[%clk 0:00:07]}  Kg7 {[%clk 0:00:12]} 53. Rd2 {[%clk 0:00:06]}  Qc6 {[%clk 0:00:09]} 54. Rd7+ {[%clk 0:00:07]}  Kf8 {[%clk 0:00:09]} 55. Kf6 {[%clk 0:00:06]}  Qf3+ {[%clk 0:00:09]} 56. Kg5 {[%clk 0:00:06]}  b2 {[%clk 0:00:08]} 57. Nf6 {[%clk 0:00:07]}  Qg3+ {[%clk 0:00:07]} 58. Kh5 {[%clk 0:00:04]}  Qh3+ {[%clk 0:00:08]} 59. Kg5 {[%clk 0:00:04]}  Qxe6 {[%clk 0:00:10]} 60. Nh7+ {[%clk 0:00:03]}  Ke8 {[%clk 0:00:10]} 61. Rb7 {[%clk 0:00:03]}  Qe5+ {[%clk 0:00:11]} 62. Kg6 {[%clk 0:00:04]}  Qe4+ {[%clk 0:00:12]} 0-1


[Site "Internet"]